[Event "CCT Airthings Masters Play-In 2023"]
[Site "Online"]
[Date "2023.02.03"]
[Round "2"]
[White "OldweakGM"]
[Black "dropstoneDP"]
[Result "1-0"]
[ECO "A34"]
[WhiteElo "2339"]
[BlackElo "2586"]
[Annotator "TA"]
[PlyCount "85"]
[EventDate "2023.02.03"]
[EventType "swiss"]
[EventCountry "NET"]
[SourceTitle "playchess.com"]
[Source "ChessBase"]
[SourceQuality "1"]
[TimeControl "600+2"]

{[%evp 9,85,18,3,5,10,19,27,18,29,30,22,16,27,28,39,10,33,-14,0,0,11,20,21,6,6,5,8,0,111,112,254,0,3,0,116,0,0,-37,0,-16,-20,-240,20,36,75,75,68,68,112,88,158,158,136,147,156,102,102,45,72,58,67,58,73,58,62,15,68,58,73,-80,-83,-145,-155,-145,-131,-285,-41,-45]} 1. Nf3 {[%emt 0:00:05]} Nf6 {[%emt 0:00:05]} 2. c4 {[%emt 0:00:01]} c5 {[%emt 0:00:01]} 3. Nc3 {[%emt 0:00:01]} Nc6 {[%emt 0:00:01]} 4. e3 {[%emt 0:00:02]} e5 {[%emt 0:00:01]} 5. d4 {[%emt 0:00:01]} e4 {[%emt 0:00:02]} 6. Ne5 {[%emt 0:00:10] A34: Symmetrical English: 2 Nc3, lines with ...d5.} h5 {[%emt 0:00:08]} 7. Be2 {[%emt 0:00:13]} Bd6 {[%emt 0:00:19] is the legacy move (7...Qc7).} 8. f4 {[%emt 0:00:20] White has an edge.} Bc7 {[%emt 0:01:18]} 9. O-O {[%emt 0:00:48]} (9. Nxc6 {simplifies} dxc6 10. dxc5 Qe7 11. b4) 9... cxd4 {[%emt 0:00:23]} 10. exd4 {[%emt 0:00:03]} d6 {[%emt 0:00:01]} 11. Nxc6 {[%emt 0:00:11]} bxc6 {[%emt 0:00:01]} 12. f5 {[%emt 0:00:31]} d5 {[%emt 0:00:53] [#]} 13. Bf4 $146 {[%emt 0:00:43]} (13. cxd5 $14 cxd5 14. Kh1) ({Predecessor:} 13. cxd5 cxd5 14. g3 Bd7 15. Bg5 h4 16. g4 Qb8 {½-½ Stanach,F (2484)-Budkin,G (2407) W-Cup18 sf11 email 2013}) 13... Bxf4 $11 {[%emt 0:00:08]} 14. Rxf4 {[%emt 0:00:01]} Qd6 {[%emt 0:00:19]} 15. Qd2 {[%emt 0:00:01]} Rb8 {[%emt 0:01:08][%cal Ob8b2]} 16. Raf1 {[%emt 0:00:17]} Qb4 {[%emt 0:00:43]} 17. b3 {[%emt 0:00:26]} h4 {[%emt 0:00:02]} 18. Qe1 {[%emt 0:00:31]} h3 {[%emt 0:00:05]} (18... Kf8 $11) 19. g4 $16 {[%emt 0:00:05]} Nh7 {[%emt 0:02:18]} (19... Kd8 $16) 20. cxd5 $2 {[%emt 0:00:11]} (20. Qg3 $1 $18) 20... cxd5 $11 {[%emt 0:01:23]} 21. Qg3 {[%emt 0:03:12]} Qxd4+ {[%emt 0:00:07]} (21... O-O $1 $11 {remains equal.}) 22. Kh1 {[%emt 0:00:01]} (22. R4f2 $1 $16 {Hoping for Rd1.} e3 23. Rf3 (23. Qxb8 $2 exf2+ 24. Rxf2 Qxc3 $19)) 22... O-O $1 {[%emt 0:00:58] White must now prevent ...Bb7.} 23. Rd1 {[%emt 0:00:02]} (23. Qxh3 Ng5 24. Qg3 Bb7 $15) (23. g5 $5 {[%cal Rf4h4]} Qe5 24. Qxh3 Nxg5 25. Qh5 $15) 23... Qc5 {[%emt 0:00:06]} 24. Nxd5 {[%emt 0:00:20] g5 would be deadly.} (24. Qxh3 Ng5 25. Qh5 Qxc3 $17) (24. Rxd5 $5 Qc7 25. Rf3 (25. Nxe4 $2 Bb7 $19) (25. Rxe4 Qxg3 26. hxg3 Nf6 $17) 25... Qxg3 26. Rxg3 $11) 24... Bb7 {[%emt 0:00:03]} 25. Qe3 $2 {[%emt 0:00:15] [#]} (25. Ne3 $1 $11 Rbd8 26. Rff1 (26. Qxh3 $2 {perishes.} Ng5 $19)) 25... Qxe3 $2 {[%emt 0:00:05]} ({Black should try} 25... Rfc8 $1 $19 26. Qxc5 (26. Qxe4 $2 {loses.} Nf6 $19) 26... Rxc5) 26. Nxe3 {[%emt 0:00:01]} Rfd8 {[%emt 0:00:01]} 27. Rff1 {[%emt 0:00:06]} Ng5 {[%emt 0:00:01]} 28. Kg1 {[%emt 0:00:09]} a5 {[%emt 0:00:02]} 29. Kf2 {[%emt 0:00:03]} Bc6 {[%emt 0:00:03]} (29... f6 $142) 30. Rxd8+ $16 {[%emt 0:00:18]} Rxd8 {[%emt 0:00:01]} 31. Rc1 {[%emt 0:00:00]} Be8 {[%emt 0:00:07] [#]} 32. Rd1 {[%emt 0:00:01]} (32. Rc5 $142 $1) 32... Rb8 {[%emt 0:00:03]} 33. Nd5 {[%emt 0:00:05]} (33. Rd4 $16) 33... Kf8 {[%emt 0:00:07]} 34. Ke3 {[%emt 0:00:00]} Bc6 {[%emt 0:00:02]} 35. Nc3 {[%emt 0:00:19]} f6 {[%emt 0:00:00]} 36. Rd6 {[%emt 0:00:02]} Rc8 {[%emt 0:00:01]} 37. Ba6 {[%emt 0:00:11]} (37. Rd4 $14 {is more appropriate.}) 37... Ke7 {[%emt 0:00:01]} ({Better is} 37... Bb7 $11 38. Bc4 (38. Bxb7 Rxc3+ 39. Kd2 Rc7 $17) 38... Nf3) 38. Rd4 $14 {[%emt 0:00:09] White has more active pieces.} Rb8 {[%emt 0:00:03]} 39. Bc4 $2 {[%emt 0:00:04]} (39. Be2 $16 {stays on course.}) 39... Nf3 $17 {[%emt 0:00:03]} 40. Rd1 {[%emt 0:00:16]} (40. Nd5+ $142 Kf8 41. Rxe4 Nxh2 42. Kf2) 40... Nxh2 {[%emt 0:00:02]} 41. Kf4 {[%emt 0:00:01]} Nf3 {[%emt 0:00:06] aiming for ...h2.} 42. Nxe4 $2 {[%emt 0:00:47]} (42. Bd5 $17 Bxd5 43. Nxd5+ Kf7 44. Rh1) 42... Bxe4 $2 {[%emt 0:00:02]} (42... Ne5 $19 43. Bd5 Bxd5 44. Rxd5 h2) 43. Kxe4 {[%emt 0:00:01][%mdl 32768] A wild game.   Weighted Error Value: White=0.47/Black=0.37. Sensor Board Error (Ke4/e5)?} 1-0

[Event "CCT Airthings Masters Play-In 2023"]
[Site "Online"]
[Date "2023.02.03"]
[Round "2"]
[White "hissha"]
[Black "ChessLover"]
[Result "0-1"]
[ECO "B50"]
[WhiteElo "2292"]
[BlackElo "2577"]
[Annotator "TA"]
[PlyCount "60"]
[EventDate "2023.02.03"]
[EventType "swiss"]
[EventCountry "NET"]
[SourceTitle "playchess.com"]
[Source "ChessBase"]
[SourceQuality "1"]
[TimeControl "600+2"]

{[%evp 12,60,28,27,22,13,8,7,10,7,18,9,28,10,7,-82,-16,-62,-60,-101,-36,-52,-28,-31,-35,-78,-76,-166,-76,-48,-15,-90,-87,-120,-116,-494,-489,-481,-481,-507,-495,-472,-464,-449,-398,-410,-401,-402,-374,-388,-338]} 1. e4 {[%emt 0:00:07]} c5 {[%emt 0:00:07]} 2. Nf3 {[%emt 0:00:04]} d6 {[%emt 0:00:01]} 3. Bb5+ {[%emt 0:00:04]} Bd7 {[%emt 0:00:01]} 4. Bxd7+ {[%emt 0:00:04]} Nxd7 {[%emt 0:00:00]} 5. O-O {[%emt 0:00:05]} Ngf6 {[%emt 0:00:03]} 6. Qe2 {[%emt 0:00:12]} e6 {[%emt 0:00:03]} 7. b3 {[%emt 0:00:37]} g6 {[%emt 0:00:18] B50: Sicilian: 2...d6, Miscellaneous.} 8. Bb2 {[%emt 0:00:04]} Bg7 {[%emt 0:00:02]} 9. d4 {[%emt 0:00:42]} cxd4 {[%emt 0:00:03] The position is equal.} 10. Nxd4 {[%emt 0:00:13]} O-O {[%emt 0:00:01]} 11. c4 {[%emt 0:00:24]} d5 $5 {[%emt 0:01:10][%mdl 4] [#] Exploring less charted territory.} 12. cxd5 $146 {[%emt 0:02:09]} (12. e5 $5 {[%cal Re5f6]} Ne4 13. cxd5 exd5 14. f3 $11) ({Predecessor:} 12. e5 Ne4 13. cxd5 exd5 14. f3 Nxe5 15. fxe4 dxe4 16. Qxe4 Re8 17. Nd2 Nc4 18. Qxe8+ Qxe8 19. Nxc4 {1-0 Deuer,M (2338)-Yaniv,Y (2305) EU-chT U18 Thessaloniki 2022 (2.4)}) 12... exd5 {[%emt 0:00:00]} 13. exd5 {[%emt 0:00:21]} (13. e5 $11 {remains equal.} Re8 14. f4) 13... Nxd5 {[%emt 0:00:26]} (13... Re8 $1 $17 {[%cal Re8e2]} 14. Qd2 Ne4) 14. Rd1 {[%emt 0:01:18]} (14. Nc3 $11 Re8 15. Qd2 Nxc3 16. Qxc3) 14... Re8 {[%emt 0:00:15]} 15. Qb5 {[%emt 0:00:16]} N7b6 {[%emt 0:00:17]} ({Black should play} 15... Nf4 $17 {White must now prevent ...Nb6.} 16. Nc3 Ne5) 16. Na3 {[%emt 0:01:05]} a6 {[%emt 0:00:18]} 17. Qf1 {[%emt 0:00:12]} Qe7 $36 {[%emt 0:00:29][%mdl 2048] Black has good play.} 18. Nc4 {[%emt 0:00:13]} Nxc4 $1 {[%emt 0:00:08]} 19. Qxc4 {[%emt 0:00:10] [#]} (19. bxc4 $17 {only move.} Nb6 20. Rac1) 19... Rad8 {[%emt 0:00:07]} (19... Nf4 $1 $19 {has better winning chances. Strongly threatening ...Qe4.} 20. Qf1 Rad8) 20. g3 $17 {[%emt 0:00:20]} Nb6 {[%emt 0:01:01]} (20... Qe4 {seems wilder.} 21. Rd2 b5 22. Qc6 Nb4) 21. Qc2 {[%emt 0:00:24] [#]} (21. Qc3 $11) 21... Qe4 $1 {[%emt 0:00:28] ...Qxc2 would be deadly. Black is more active.} 22. Qxe4 {[%emt 0:00:14]} Rxe4 {[%emt 0:00:00]} 23. Re1 $2 {[%emt 0:01:05][%mdl 8192] This move loses the game for White.} (23. Rd3 $17) 23... Rxe1+ $19 {[%emt 0:00:09]} ({Inferior is} 23... Rexd4 24. Bxd4 Bxd4 25. Rad1 $17) ({Weaker is} 23... Bxd4 24. Rxe4 Bxb2 25. Rae1 $17) 24. Rxe1 {[%emt 0:00:02]} Bxd4 {[%emt 0:00:00]} 25. Bxd4 {[%emt 0:00:13]} Rxd4 {[%emt 0:00:00] KRN-KR} 26. Re7 {[%emt 0:00:07]} Rd1+ {[%emt 0:00:01]} 27. Kg2 {[%emt 0:00:03]} Nd5 {[%emt 0:00:01]} 28. Rxb7 {[%emt 0:00:03] Black is winning.} Rd2 {[%emt 0:00:00]} 29. a4 {[%emt 0:00:05]} Ne3+ {[%emt 0:00:01]} 30. Kf3 {[%emt 0:00:03]} Nd1 {[%emt 0:00:01] Weighted Error Value: White=0.50/Black=0.20 (precise)} 0-1

[Event "CCT Airthings Masters Play-In 2023"]
[Site "Online"]
[Date "2023.02.03"]
[Round "2"]
[White "Rodalquilar"]
[Black "TimofeevAr"]
[Result "1/2-1/2"]
[ECO "D02"]
[WhiteElo "2271"]
[BlackElo "2576"]
[Annotator "TA"]
[PlyCount "95"]
[EventDate "2023.02.03"]
[EventType "swiss"]
[EventCountry "NET"]
[SourceTitle "playchess.com"]
[Source "ChessBase"]
[SourceQuality "1"]
[TimeControl "600+2"]

{[%evp 9,95,13,12,1,15,0,7,0,14,-14,27,28,13,11,66,-34,-33,-36,-33,-35,-35,-70,-67,-113,-96,-98,6,-32,-15,-31,-19,-8,0,0,0,-29,11,5,25,25,20,0,0,0,31,35,48,0,0,0,0,0,0,-41,-54,-29,0,0,0,0,0,0,0,0,0,0,0,0,0,-9,0,0,0,0,0,0,0,0,0,0,0,0,0,0,0,0,0,0]} 1. d4 {[%emt 0:00:03]} d5 {[%emt 0:00:06]} 2. Nf3 {[%emt 0:00:01]} e6 {[%emt 0:00:03]} 3. Bf4 {[%emt 0:00:02]} Bd6 {[%emt 0:00:04]} 4. e3 {[%emt 0:00:01]} Nf6 {[%emt 0:00:03]} 5. Nbd2 {[%emt 0:00:03]} O-O {[%emt 0:00:07]} 6. c3 {[%emt 0:00:03] D02: 1 d4 d5 2 Nf3 sidelines, including 2...Nf6 3 g3 and 2...Nf6 3 Bf4.} b6 {[%emt 0:00:02]} 7. h4 {[%emt 0:00:04]} Bb7 {[%emt 0:00:05]} 8. h5 {[%emt 0:00:02]} h6 {[%emt 0:00:09] [#]} 9. Bd3 $146 {[%emt 0:00:45]} ({Predecessor:} 9. Ne5 Nfd7 10. Qg4 Kh8 11. Bd3 Nxe5 12. dxe5 Be7 13. O-O-O Nd7 14. Bc2 Qe8 15. Rh3 {1-0 Matlakov,M (2685)-Tristan,L (2535) Titled Tuesday intern op 14th July blitz 2020 (3)}) 9... Ne4 {[%emt 0:00:26]} 10. Ne5 {[%emt 0:01:24]} Nd7 {[%emt 0:00:07]} 11. f3 {[%emt 0:01:11]} Nxd2 {[%emt 0:00:37]} (11... Ng5 $11) 12. Kxd2 {[%emt 0:00:00]} (12. Qxd2 $14 Qe7 13. O-O-O) 12... Bxe5 $15 {[%emt 0:00:08]} 13. dxe5 {[%emt 0:00:38]} f6 {[%emt 0:00:04]} 14. exf6 {[%emt 0:00:05]} Qxf6 {[%emt 0:00:14]} 15. Bg6 {[%emt 0:00:29]} (15. Bxc7 e5 16. f4 d4 $17) 15... e5 {[%emt 0:00:07]} (15... Nc5 {is interesting.} 16. Bxc7 e5 17. f4 exf4 18. Bxf4 Rad8) 16. Bg3 {[%emt 0:00:02]} (16. Bh2 $15) 16... Qe6 {[%emt 0:00:27]} (16... Nc5 {looks sharper.} 17. Rh4 e4 18. Kc2 Qg5) 17. Kc2 {[%emt 0:00:44]} Nf6 {[%emt 0:00:02]} (17... Rf6 $17 {Hoping for ...Rxg6.} 18. Bd3 Nc5) 18. Qe2 {[%emt 0:00:09]} c5 {[%emt 0:00:06]} 19. Rad1 {[%emt 0:00:03]} a5 {[%emt 0:00:06]} 20. Kb1 {[%emt 0:00:04]} a4 {[%emt 0:00:06]} (20... Ba6 $5 {[%cal Ra6e2]} 21. Qe1 e4 $11) 21. a3 {[%emt 0:00:08]} Ba6 {[%emt 0:00:05]} 22. Qc2 {[%emt 0:00:01]} Bc4 {[%emt 0:00:02]} 23. Qf5 {[%emt 0:00:04]} Qxf5+ {[%emt 0:00:11]} (23... Rae8 $5) 24. Bxf5 {[%emt 0:00:00] A strong pair of Bishops.} Rfe8 {[%emt 0:00:02]} 25. Bg6 {[%emt 0:00:06]} Re6 {[%emt 0:00:05]} 26. Bf5 {[%emt 0:00:06]} Re7 {[%emt 0:00:02]} 27. Bh4 {[%emt 0:00:01]} Ree8 {[%emt 0:00:35]} 28. g4 {[%emt 0:00:04]} (28. Rh3 $14 {deserves consideration.}) 28... Be2 $11 {[%emt 0:00:05][%csl LRd1,LRf3][%cal Oe2f3]} 29. Rd2 {[%emt 0:01:16]} ({Much weaker is} 29. Bxf6 Bxd1 30. Rxd1 gxf6 $15) 29... Bxf3 {[%emt 0:00:04]} 30. Rf1 {[%emt 0:00:01]} e4 {[%emt 0:00:20]} ({Resist} 30... Bxg4 31. Bxf6 Bxf5+ 32. Rxf5 $16) (30... Ne4 $2 31. Rc2 $18 (31. Rxd5 $2 {loses.} Nxc3+ {[%mdl 64] Discovered Attack} 32. bxc3 Bxd5 $19)) 31. Bxf6 {[%emt 0:00:04][%mdl 64] [#] Remove Defender} gxf6 {[%emt 0:00:02]} 32. Rxd5 {[%emt 0:00:01]} Rad8 {[%emt 0:00:06] Dodges Rd6} 33. Bd7 {[%emt 0:01:04] The position is equal.} Kg7 {[%emt 0:00:04] aiming for ...Re7.} 34. c4 {[%emt 0:00:32]} Re5 {[%emt 0:00:10]} 35. Rxe5 {[%emt 0:00:07]} fxe5 {[%emt 0:00:01]} 36. Bxa4 {[%emt 0:00:02][%mdl 4096] Endgame KRB-KRB} Rd3 {[%emt 0:00:06]} 37. Re1 {[%emt 0:00:04]} Kf6 {[%emt 0:00:03][%cal Of6g5]} 38. Bc2 {[%emt 0:00:04]} Rd8 {[%emt 0:00:06]} 39. b4 {[%emt 0:00:02]} Kg5 {[%emt 0:00:03]} 40. Rg1 {[%emt 0:00:07]} Rd2 {[%emt 0:00:14] [#] ...Re2 would be deadly.} 41. bxc5 {[%emt 0:00:05]} bxc5 {[%emt 0:00:02] ...Re2 is the strong threat.} 42. a4 {[%emt 0:00:13]} Re2 {[%emt 0:00:03]} 43. a5 {[%emt 0:00:01]} Rxe3 {[%emt 0:00:02]} 44. Kb2 {[%emt 0:00:01] Wards off Ra3} Re2 {[%emt 0:00:11]} 45. Kc3 {[%emt 0:00:36] Prevents Rd2.} Re3+ {[%emt 0:00:08]} 46. Kb2 {[%emt 0:00:01]} Re2 {[%emt 0:00:01][%cal Oe2d2] Strongly threatening ...Rd2!} 47. Kc3 {[%emt 0:00:00] Wards off Rd2} Re3+ {[%emt 0:00:09]} 48. Kb2 {[%emt 0:00:01] Weighted Error Value: White=0.12 (very precise) /Black=0.13 (very precise)} 1/2-1/2

[Event "CCT Airthings Masters Play-In 2023"]
[Site "Online"]
[Date "2023.02.03"]
[Round "2"]
[White "chessdjw"]
[Black "igorkovalenko"]
[Result "0-1"]
[ECO "E90"]
[WhiteElo "2255"]
[BlackElo "2573"]
[Annotator "TA"]
[PlyCount "86"]
[EventDate "2023.02.03"]
[EventType "swiss"]
[EventCountry "NET"]
[SourceTitle "playchess.com"]
[Source "ChessBase"]
[SourceQuality "1"]
[TimeControl "600+2"]

{[%evp 11,85,41,47,42,52,39,35,31,46,0,0,-22,17,-29,0,-15,-13,-41,-41,-41,0,-41,-41,-36,-29,-41,-21,-41,-41,-41,0,-29,-29,-53,-29,-34,0,-59,-59,-52,-51,-101,-35,-59,0,-120,0,-39,-50,-350,-84,-94,0,0,0,0,0,0,0,0,0,0,0,0,0,0,0,-2766,-2770,-2029,-1915,-29995,-29996,-29996,-29997,-29999]} 1. d4 {[%emt 0:00:04]} Nf6 {[%emt 0:00:04]} 2. Nf3 {[%emt 0:00:01]} g6 {[%emt 0:00:02]} 3. c4 {[%emt 0:00:13]} Bg7 {[%emt 0:00:01]} 4. Nc3 {[%emt 0:00:00]} d6 {[%emt 0:00:01]} 5. e4 {[%emt 0:00:01]} Bg4 {[%emt 0:00:02]} 6. Be2 {[%emt 0:00:02]} Nfd7 {[%emt 0:00:01]} 7. Be3 {[%emt 0:00:01] E90: King's Indian: Classical: Early deviations and 6 h3.} Nc6 {[%emt 0:00:01]} 8. d5 {[%emt 0:00:23] [#]} (8. Ng1 $5 {[%cal Re2g4]} Bxe2 9. Ngxe2 $14) 8... Bxc3+ $146 {[%emt 0:00:03]} ({Predecessor:} 8... Nce5 9. Nxe5 Bxe2 10. Nxf7 Bxd1 11. Nxd8 Bg4 12. h3 Rxd8 13. hxg4 Ne5 14. Bd4 Nd3+ {1-0 Muradli,M (2449)-Niemann,H (2465) Titled Tuesday intern op 30th June blitz 2020 (3)}) 9. bxc3 {[%emt 0:00:01] White is slightly better.} Na5 {[%emt 0:00:00]} 10. h3 {[%emt 0:00:44]} (10. Nd2 $14 Bxe2 11. Qxe2) 10... Bxf3 $11 {[%emt 0:00:01]} 11. gxf3 {[%emt 0:00:00]} e5 {[%emt 0:00:06]} 12. h4 {[%emt 0:00:17]} (12. dxe6 {was preferrable.} fxe6 13. Qa4) 12... Qe7 {[%emt 0:00:15]} 13. Qa4 {[%emt 0:00:50]} b6 {[%emt 0:00:01]} 14. h5 {[%emt 0:00:01]} g5 {[%emt 0:00:02]} 15. h6 {[%emt 0:00:13][%cal Oc4c5]} Rd8 {[%emt 0:00:06]} 16. Bf1 {[%emt 0:00:27][%cal Be2f1,Bf1h3,Bh3f5][%mdl 32]} O-O {[%emt 0:00:04]} 17. Bh3 {[%emt 0:01:05]} f6 {[%emt 0:00:03]} 18. Ke2 {[%emt 0:00:24]} Kh8 {[%emt 0:00:03]} (18... Nc5 19. Qb4 $14) 19. Bf5 {[%emt 0:00:02]} Rfe8 {[%emt 0:00:01]} 20. Rab1 {[%emt 0:00:17]} Nc5 {[%emt 0:00:09]} 21. Bxc5 {[%emt 0:00:02]} dxc5 {[%emt 0:00:01]} 22. Rbd1 {[%emt 0:00:31]} Rd6 {[%emt 0:00:13]} 23. Rd2 {[%emt 0:00:56]} Rdd8 {[%emt 0:00:04]} 24. Rdd1 {[%emt 0:00:03]} Nb7 {[%emt 0:00:03]} 25. Be6 {[%emt 0:00:34]} Nd6 {[%emt 0:00:03]} 26. Qa6 {[%emt 0:00:06]} ({White has to play} 26. Rde1 $1 $15) 26... Ra8 {[%emt 0:00:06]} ({Black should play} 26... f5 $17 27. exf5 (27. Bxf5 Nxf5 28. exf5 Rf8 $17) 27... Rf8) 27. a4 {[%emt 0:00:33]} Reb8 {[%emt 0:00:04]} (27... Qf8 $15) 28. Rb1 {[%emt 0:00:05]} (28. Kd2 $11) 28... Qe8 {[%emt 0:00:01]} (28... f5 $1 $17 {[%cal Rf5e4]} 29. exf5 (29. Bxf5 Nxf5 30. exf5 Qf8 $17) 29... Qf6) 29. Ra1 {[%emt 0:00:07]} Qg6 {[%emt 0:00:10]} 30. a5 $2 {[%emt 0:00:30][%mdl 8192] [#]} (30. Rae1 $15) 30... g4 $1 {[%emt 0:00:23][%mdl 512]} 31. Bxg4 $17 {[%emt 0:00:40] [#]} Nxe4 {[%emt 0:00:01]} 32. Bh5 $1 $36 {[%emt 0:00:02][%mdl 2048] White is pushing.} Ng3+ {[%emt 0:01:26]} 33. fxg3 {[%emt 0:00:03]} Qc2+ {[%emt 0:00:01]} 34. Kf1 {[%emt 0:00:09] Threatens to win with Re1.} Qd3+ {[%emt 0:00:13]} 35. Kg2 {[%emt 0:00:12]} Qd2+ {[%emt 0:00:07]} 36. Kh3 {[%emt 0:00:41]} Qxh6 {[%emt 0:00:02]} 37. g4 {[%emt 0:00:11]} (37. Kg2 $5 Qd2+ $8 38. Kg1 $11) 37... f5 {[%emt 0:00:01] Strongly threatening ...fxg4+.} 38. Rae1 {[%emt 0:00:30] Qb5 would be deadly.} Rg8 {[%emt 0:00:49] aiming for ...Raf8.} 39. Rxe5 $2 {[%emt 0:00:11][%mdl 8192]} (39. Qb5 $11 fxg4+ 40. fxg4) 39... fxg4+ $19 {[%emt 0:00:02]} 40. fxg4 {[%emt 0:00:01]} Raf8 {[%emt 0:00:06]} 41. Qb5 {[%emt 0:00:09]} Rf3+ {[%emt 0:00:02] Black mates.} 42. Kg2 {[%emt 0:00:01]} Qf4 {[%emt 0:00:02][%csl Gf3][%cal Rf4g3]} (42... Rxc3 $2 43. Qb2 Rxc4 44. Rg5+ $18) 43. Qb2 {[%emt 0:00:00]} Qg3# {[%emt 0:00:01] Excellently played by igorkovalenko!   Weighted Error Value: White=0.45/Black=0.28 (precise)} 0-1